fUST/lending_fUST_20250812
["ID","MTS","AMOUNT","RATE_DAILY","PERIOD"]
[378651631,1754943064044,-157.96167722,0.00019473,2]
[378651632,1754943064053,-248.49009127,0.00019473,2]
[378651633,1754943064063,-500.0,0.00019473,2]
[378651634,1754943064073,-158.04855829,0.00019473,2]
[378651635,1754943064083,-158.46621791,0.00019473,2]
[378651636,1754943064093,-500.0,0.00019473,2]
[378651637,1754943064102,-181.07257143,0.00019473,2]
[378651638,1754943064112,-160.06312042,0.00019473,2]
[378651639,1754943064121,-158.04855828,0.00019473,2]
[378651640,1754943064130,-400.13434124,0.00019473,2]
[378651641,1754943064140,-500.0,0.00019473,2]
[378651642,1754943064150,-500.0,0.00019473,2]
[378651643,1754943064159,-154.43239774,0.00019473,2]
[378651644,1754943064169,-160.46192181,0.00019473,2]
[378651645,1754943064179,-500.0,0.00019473,2]
[378651646,1754943064189,-500.0,0.00019473,2]
[378651647,1754943064198,-500.0,0.00019473,2]
[378651648,1754943064208,-500.0,0.00019473,2]
[378651649,1754943064218,-504.04152628,0.00019473,2]
[378651650,1754943064227,-500.0,0.00019473,2]
[378651651,1754943064238,-521.33546473,0.00019473,2]
[378651652,1754943064247,-160.17133691,0.00019473,2]
[378651653,1754943064257,-185.25659566,0.00019473,2]
[378651654,1754943064267,-340.09270154,0.00019473,2]
[378651655,1754943064277,-216.82734154,0.00019473,2]
[378651656,1754943064286,-500.0,0.00019473,2]
[378651657,1754943064296,-500.0,0.00019473,2]
[378651658,1754943064306,-500.0,0.00019473,2]
[378651659,1754943064315,-500.0,0.00019473,2]
[378651660,1754943064326,-500.0,0.00019473,2]
[378651661,1754943064335,-500.0,0.00019473,2]
[378651662,1754943064344,-500.78623683,0.00019473,2]
[378651663,1754943064354,-500.0,0.00019473,2]
[378651664,1754943064363,-500.0,0.00019473,2]
[378651665,1754943064373,-500.0,0.00019473,2]
[378651666,1754943064382,-500.0,0.00019473,2]
[378651667,1754943064392,-500.0,0.00019473,2]
[378651668,1754943064402,-173.54530953,0.00019473,2]
[378651669,1754943064411,-500.0,0.00019473,2]
[378651670,1754943064421,-621.55254894,0.00019473,2]
[378651671,1754943064430,-500.0,0.00019473,2]
[378651672,1754943064440,-500.0,0.00019473,2]
[378651673,1754943064451,-445.11431374,0.00019473,2]
[378651674,1754943064463,-500.0,0.00019473,2]
[378651675,1754943064477,-500.0,0.00019473,2]
[378651676,1754943064487,-500.0,0.00019473,2]
[378651677,1754943064497,-162.28457996,0.00019473,2]
[378651678,1754943064507,-500.0,0.00019473,2]
[378651679,1754943064517,-500.0,0.00019473,2]
[378651680,1754943064526,-500.0,0.00019473,2]
[378651681,1754943064536,-500.0,0.00019473,2]
[378651682,1754943064545,-448.81982586,0.00019473,2]
[378651683,1754943064557,-500.0,0.00019473,2]
[378651684,1754943064566,-500.0,0.00019473,2]
[378651685,1754943064577,-500.0,0.00019473,2]
[378651686,1754943064587,-500.0,0.00019473,2]
[378651687,1754943064597,-500.0,0.00019473,2]
[378651688,1754943064608,-500.0,0.00019473,2]
[378651689,1754943064617,-500.0,0.00019473,2]
[378651690,1754943064626,-500.0,0.00019473,2]
[378651691,1754943064780,-500.0,0.00019473,2]
[378651692,1754943064799,-500.0,0.00019473,2]
[378651693,1754943064809,-500.0,0.00019473,2]
[378651694,1754943064818,-500.0,0.00019473,2]
[378651695,1754943064832,-500.0,0.00019473,2]
[378651696,1754943064840,-500.0,0.00019473,2]
[378651697,1754943064850,-168.72970159,0.00019473,2]
[378651698,1754943064859,-500.0,0.00019473,2]
[378651699,1754943064868,-500.0,0.00019473,2]
[378651700,1754943064878,-206.31777,0.00019473,2]
[378651701,1754943064887,-151.0,0.00019473,2]
[378651702,1754943064896,-151.0,0.00019473,2]
[378651703,1754943064906,-600.0,0.00019498,2]
[378651704,1754943064916,-361.71,0.00019498,2]
[378651705,1754943064926,-85884.27165821,0.000195,2]
[378651706,1754943064935,-151.0,0.000195,2]
[378651707,1754943064944,-151.0,0.000195,2]
[378651708,1754943064954,-272.826563,0.000195,2]
[378651709,1754943064963,-272.826563,0.000195,2]
[378651710,1754943064973,-202.0,0.0001958,2]
[378651711,1754943064982,-830.14840316,0.00019626,2]
[378651712,1754943064991,-168.0,0.00019635,2]
[378651713,1754943065000,-168.0,0.00019648,2]
[378651714,1754943065009,-1500.0,0.00019712,2]
[378651715,1754943065018,-500.0,0.00019715,2]
[378651716,1754943065028,-500.0,0.00019721,2]
[378651717,1754943065037,-1000.0,0.00019721,2]
[378651718,1754943065046,-1000.0,0.00019721,2]
[378651719,1754943065055,-504.04565905,0.00019721,2]
[378651720,1754943065064,-1000.0,0.00019721,2]
[378651721,1754943065075,-1000.0,0.00019721,2]
[378651722,1754943065083,-1000.0,0.00019721,2]
[378651723,1754943065092,-500.0,0.00019721,2]
[378651724,1754943065101,-1000.0,0.00019721,2]
[378651725,1754943065111,-1000.0,0.00019721,2]
[378651726,1754943065120,-547.10620068,0.00019721,2]
[378651727,1754943065130,-1000.0,0.00019721,2]
[378651728,1754943065139,-1000.0,0.00019721,2]
[378651729,1754943065148,-350.69320462,0.00019725,2]
[378651730,1754943065157,-151.0,0.00019726,2]
[378651731,1754943065166,-151.0,0.00019726,2]
[378651732,1754943065175,-500.0,0.00019726,2]
[378651733,1754943065184,-151.0,0.00019726,2]
[378651734,1754943065196,-500.0,0.00019726,2]
[378651735,1754943065205,-500.0,0.00019726,2]
[378651736,1754943065214,-556.4551203,0.00019726,2]
[378651737,1754943065223,-151.0,0.00019726,2]
[378651738,1754943065233,-155.57098955,0.00019726,2]
[378651739,1754943065242,-151.0,0.00019726,2]
[378651740,1754943065251,-500.0,0.00019726,2]
[378651741,1754943065261,-203.47137086,0.00019726,2]
[378651742,1754943065271,-151.0,0.00019726,2]
[378651743,1754943065280,-235.69178676,0.00019726,2]
[378651744,1754943065289,-151.0,0.00019726,2]
[378651745,1754943065299,-500.0,0.00019726,2]
[378651746,1754943065309,-500.0,0.00019726,2]
[378651747,1754943065318,-500.0,0.00019726,2]
[378651748,1754943065330,-596.08646877,0.00019726,2]
[378651749,1754943065339,-151.0,0.00019726,2]
[378651750,1754943065349,-255.0,0.00019726,2]
[378651751,1754943065358,-199.73992829,0.00019726,2]
[378651752,1754943065368,-289.765563,0.00019726,2]
[378651753,1754943065377,-151.0,0.00019726,2]
[378651754,1754943065386,-460.0,0.00019726,2]
[378651755,1754943065396,-460.0,0.00019726,2]
[378651756,1754943065405,-892.81,0.00019726,2]
[378651757,1754943065415,-460.0,0.00019726,2]
[378651758,1754943065425,-616.05,0.00019726,2]
[378651759,1754943065434,-720.96,0.00019726,2]
[378651760,1754943065443,-656.99,0.00019726,2]
[378651761,1754943065453,-460.0,0.00019726,2]
[378651762,1754943065463,-600.18,0.00019726,2]
[378651763,1754943065473,-272.826563,0.00019726,2]
[378651764,1754943065483,-272.826564,0.00019726,2]
[378651765,1754943065494,-1003.21411336,0.00019726,2]
[378651766,1754943065502,-461.4589706,0.00019726,2]
[378651767,1754943065512,-460.0,0.00019726,2]
[378651768,1754943065521,-460.0,0.00019726,2]
[378651769,1754943065530,-882.69,0.00019726,2]
[378651770,1754943065539,-713.45,0.00019726,2]
[378651771,1754943065548,-460.0,0.00019726,2]
[378651772,1754943065557,-460.0,0.00019726,2]
[378651773,1754943065567,-460.0,0.00019726,2]
[378651774,1754943065579,-460.0,0.00019726,2]
[378651775,1754943065588,-460.0,0.00019726,2]
[378651776,1754943065598,-460.0,0.00019726,2]
[378651777,1754943065608,-487.77,0.00019726,2]
[378651778,1754943065617,-460.0,0.00019726,2]
[378651779,1754943065627,-460.0,0.00019726,2]
[378651780,1754943065636,-460.0,0.00019726,2]
[378651781,1754943065646,-395.44448093,0.00019726,2]
[378651782,1754943065655,-460.0,0.00019726,2]
[378651783,1754943065666,-460.0,0.00019726,2]
[378651784,1754943065676,-460.0,0.00019726,2]
[378651785,1754943065686,-460.0,0.00019726,2]
[378651786,1754943065696,-460.0,0.00019726,2]
[378651787,1754943065706,-228.35510715,0.00019726,2]
[378651788,1754943065715,-460.0,0.00019726,2]
[378651789,1754943065725,-460.0,0.00019726,2]
[378651790,1754943065734,-460.0,0.00019726,2]
[378651791,1754943065745,-500.11733005,0.00019726,2]
[378651792,1754943065759,-460.0,0.00019726,2]
[378651793,1754943065769,-460.0,0.00019726,2]
[378651794,1754943065779,-647.08,0.00019726,2]
[378651795,1754943065788,-460.0,0.00019726,2]
[378651796,1754943065798,-460.0,0.00019726,2]
[378651797,1754943065808,-807.02,0.00019726,2]
[378651798,1754943065817,-414.69607819,0.00019726,2]
[378651799,1754943065830,-460.0,0.00019726,2]
[378651800,1754943065839,-460.0,0.00019726,2]
[378651801,1754943065849,-460.0,0.00019726,2]
[378651802,1754943065858,-798.36,0.00019726,2]
[378651803,1754943065867,-460.0,0.00019726,2]
[378651804,1754943065877,-460.0,0.00019726,2]
[378651805,1754943065886,-460.0,0.00019726,2]
[378651806,1754943065896,-460.0,0.00019726,2]
[378651807,1754943065905,-581.49,0.00019726,2]
[378651808,1754943065914,-460.0,0.00019726,2]
[378651809,1754943065923,-75.61940234,0.00019726,2]
[378651810,1754943067044,-151.0,0.00019178,2]
[378651811,1754943067054,-384.38059766,0.00019726,2]
[378651812,1754943067063,-500.0,0.00019726,2]
[378651813,1754943067075,-460.0,0.00019726,2]
[378651814,1754943067085,-460.0,0.00019726,2]
[378651815,1754943067094,-460.0,0.00019726,2]
[378651816,1754943067105,-460.0,0.00019726,2]
[378651817,1754943067114,-460.0,0.00019726,2]
[378651818,1754943067122,-460.0,0.00019726,2]
[378651819,1754943067131,-460.0,0.00019726,2]
[378651820,1754943067141,-460.0,0.00019726,2]
[378651821,1754943067150,-856.38,0.00019726,2]
[378651822,1754943067159,-460.0,0.00019726,2]
[378651823,1754943067168,-460.0,0.00019726,2]
[378651824,1754943067177,-460.0,0.00019726,2]
[378651825,1754943067187,-460.0,0.00019726,2]
[378651826,1754943067197,-460.0,0.00019726,2]
[378651827,1754943067207,-781.76,0.00019726,2]
[378651828,1754943067218,-854.96,0.00019726,2]
[378651829,1754943067227,-460.0,0.00019726,2]
[378651830,1754943067237,-183.79375977,0.00019726,2]
[378651831,1754943067246,-460.0,0.00019726,2]
[378651832,1754943067256,-1000.0,0.00019726,2]
[378651833,1754943067265,-361.615044,0.00019726,2]
[378651834,1754943067274,-460.0,0.00019726,2]
[378651835,1754943067283,-195.76178862,0.00019726,2]
[378651836,1754943067296,-264.23821138,0.00019726,2]
[378651837,1754943067304,-460.0,0.00019726,2]
[378651838,1754943067314,-460.0,0.00019726,2]
[378651839,1754943067323,-722.61,0.00019726,2]
[378651840,1754943067336,-460.0,0.00019726,2]
[378651841,1754943067345,-460.0,0.00019726,2]
[378651842,1754943067354,-460.0,0.00019726,2]
[378651843,1754943067363,-460.0,0.00019726,2]
[378651844,1754943067372,-460.0,0.00019726,2]
[378651845,1754943067381,-460.0,0.00019726,2]
[378651846,1754943067390,-460.0,0.00019726,2]
[378651847,1754943067399,-460.0,0.00019726,2]
[378651848,1754943067409,-460.0,0.00019726,2]
[378651849,1754943067418,-995.38,0.00019726,2]
[378651850,1754943067427,-460.0,0.00019726,2]
[378651851,1754943067436,-233.37953703,0.00019726,2]
[378651852,1754943067445,-460.0,0.00019726,2]
[378651853,1754943067454,-495.66,0.00019726,2]
[378651854,1754943067464,-460.0,0.00019726,2]
[378651855,1754943067478,-875.74,0.00019726,2]
[378651856,1754943067487,-460.0,0.00019726,2]
[378651857,1754943067496,-553.11,0.00019726,2]
[378651858,1754943067505,-275.390677,0.00019726,2]
[378651859,1754943067514,-460.0,0.00019726,2]
[378651860,1754943067524,-295.42854797,0.00019726,2]
[378651861,1754943067533,-375.73658358,0.00019726,2]
[378651862,1754943067546,-87.20481272,0.00019726,2]
[378651863,1754943067555,-770.55,0.00019726,2]
[378651864,1754943067565,-460.0,0.00019726,2]
[378651865,1754943067577,-460.0,0.00019726,2]
[378651866,1754943067587,-460.0,0.00019726,2]
[378651867,1754943067596,-460.0,0.00019726,2]
[378651868,1754943067605,-460.0,0.00019726,2]
[378651869,1754943067614,-460.0,0.00019726,2]
[378651870,1754943067623,-590.12,0.00019726,2]
[378651871,1754943067633,-460.0,0.00019726,2]
[378651872,1754943067642,-1779.19,0.00019726,2]
[378651873,1754943067651,-389.73931765,0.00019726,2]
[378651874,1754943067680,-70.26068235,0.00019726,2]
[378651875,1754943067690,-458.23065278,0.00019726,2]
[378651876,1754943067699,-460.0,0.00019726,2]
[378651877,1754943067708,-460.0,0.00019726,2]
[378651878,1754943067717,-460.0,0.00019726,2]
[378651879,1754943067726,-460.0,0.00019726,2]
[378651880,1754943067735,-460.0,0.00019726,2]
[378651881,1754943067744,-460.0,0.00019726,2]
[378651882,1754943067754,-460.0,0.00019726,2]
[378651883,1754943067763,-650.59,0.00019726,2]
[378651884,1754943067773,-460.0,0.00019726,2]
[378651885,1754943067783,-460.0,0.00019726,2]
[378651886,1754943067792,-460.0,0.00019726,2]
[378651887,1754943067801,-460.0,0.00019726,2]
[378651888,1754943067811,-460.0,0.00019726,2]
[378651889,1754943067820,-460.0,0.00019726,2]
[378651890,1754943067833,-654.85,0.00019726,2]
[378651891,1754943067842,-460.0,0.00019726,2]
[378651892,1754943067851,-460.0,0.00019726,2]
[378651893,1754943067861,-460.0,0.00019726,2]
[378651894,1754943067870,-460.0,0.00019726,2]
[378651895,1754943067880,-460.0,0.00019726,2]
[378651896,1754943067889,-460.0,0.00019726,2]
[378651897,1754943067899,-460.0,0.00019726,2]
[378651898,1754943067908,-460.0,0.00019726,2]
[378651899,1754943067917,-533.92,0.00019726,2]
[378651900,1754943067926,-460.0,0.00019726,2]
[378651901,1754943067935,-1451.11,0.00019726,2]
[378651902,1754943067944,-460.0,0.00019726,2]
[378651903,1754943067954,-460.0,0.00019726,2]
[378651904,1754943067963,-460.0,0.00019726,2]
[378651905,1754943067973,-460.0,0.00019726,2]
[378651906,1754943067982,-460.0,0.00019726,2]
[378651907,1754943067991,-493.08677408,0.00019726,2]
[378651908,1754943068001,-460.0,0.00019726,2]
[378651909,1754943068011,-460.0,0.00019726,2]
[378651910,1754943068020,-460.0,0.00019726,2]
[378651911,1754943068029,-460.0,0.00019726,2]
[378651912,1754943068039,-460.0,0.00019726,2]
[378651913,1754943068048,-463.81796763,0.00019726,2]
[378651914,1754943068057,-460.0,0.00019726,2]
[378651915,1754943068067,-1310.2,0.00019726,2]
[378651916,1754943068078,-460.0,0.00019726,2]
[378651917,1754943068087,-460.0,0.00019726,2]
[378651918,1754943068096,-460.0,0.00019726,2]
[378651919,1754943068106,-460.0,0.00019726,2]
[378651920,1754943068116,-460.0,0.00019726,2]
[378651921,1754943068125,-460.0,0.00019726,2]
[378651922,1754943068134,-460.0,0.00019726,2]
[378651923,1754943068144,-1082.63,0.00019726,2]
[378651924,1754943068153,-460.0,0.00019726,2]
[378651925,1754943068165,-460.0,0.00019726,2]
[378651926,1754943068176,-1157.37,0.00019726,2]
[378651927,1754943068185,-460.0,0.00019726,2]
[378651928,1754943068194,-1153.22,0.00019726,2]
[378651929,1754943068203,-460.0,0.00019726,2]
[378651930,1754943068213,-460.0,0.00019726,2]
[378651931,1754943068222,-460.0,0.00019726,2]
[378651932,1754943068232,-460.0,0.00019726,2]
[378651933,1754943068241,-460.0,0.00019726,2]
[378651934,1754943068250,-836.03,0.00019726,2]
[378651935,1754943068259,-776.45477043,0.00019726,2]
[378651937,1754943181005,309.509245,0.00018151,2]
[378651938,1754943183223,1472.0,0.00018678,2]
[378651940,1754943345017,200.0,0.000294,120]
[378651941,1754943346307,200.0,0.000294,120]
[378651946,1754943564244,10000.0,0.00018123,2]
[378651947,1754943587447,637.489998,0.00013699,2]
[378651949,1754943598628,202.0,0.00018451,2]
[378651950,1754943612165,202.0,0.00018637,2]
[378651952,1754943620894,2400.9951595,0.00018222,2]
[378651953,1754943621078,202.0,0.00018453,2]
[378651954,1754943625829,202.0,0.00018538,2]
[378651955,1754943629999,202.0,0.00018713,2]
[378651956,1754943634959,202.0,0.00018679,2]
[378651958,1754943644138,202.0,0.00018382,2]
[378651959,1754943646761,24900.0,0.0001807,2]
[378652136,1754943850857,168.0,0.00018321,2]
[378652137,1754943855158,168.0,0.00018747,2]
[378652138,1754943864325,168.0,0.00018331,2]
[378652140,1754944008153,1000.0,0.00030137,120]
[378652145,1754944127622,524.58932188,0.0001,2]
[378652183,1754944232778,-168.0,0.00018766,2]
[378652185,1754944232787,-168.0,0.00018821,2]
[378652187,1754944232796,-1472.0,0.00018825,2]
[378652189,1754944232806,-202.0,0.00018828,2]
[378652191,1754944232818,-202.0,0.00018885,2]
[378652193,1754944232828,-602.58421139,0.000189,2]
[378652195,1754944232837,-202.0,0.00018902,2]
[378652197,1754944232846,-168.0,0.00018907,2]
[378652199,1754944232857,-1200.0,0.00018989,2]
[378652201,1754944232866,-747.39,0.0001899,3]
[378652203,1754944232875,-373.7,0.0001899,3]
[378652205,1754944232887,-186.85,0.0001899,3]
[378652208,1754944232901,-560.56,0.0001899,3]
[378652210,1754944232913,-46592.918769,0.0001899,2]
[378652213,1754944232926,-272.10095031,0.00018999,2]
[378652215,1754944232938,-422.75656817,0.00018999,2]
[378652217,1754944232950,-379.86854724,0.00018999,2]
[378652219,1754944232961,-352.11,0.00018999,2]
[378652221,1754944232971,-96571.35482135,0.00019,2]
[378652225,1754944232997,-352.11,0.00019,2]
[378652298,1754944238420,-50005.72890748,0.00019,2]
[378652300,1754944238432,-202.0,0.00019008,2]
[378652302,1754944238444,-168.0,0.00019012,2]
[378652305,1754944238456,-168.0,0.00019044,2]
[378652307,1754944238467,-151.0,0.00019063,2]
[378652309,1754944238479,-151.0,0.00019063,2]
[378652311,1754944238490,-250.0,0.00019063,2]
[378652313,1754944238501,-151.0,0.00019063,2]
[378652316,1754944238512,-151.0,0.00019063,2]
[378652318,1754944238523,-151.0,0.00019063,2]
[378652320,1754944238534,-151.0,0.00019063,2]
[378652322,1754944238545,-151.0,0.00019063,2]
[378652325,1754944238557,-151.0,0.00019063,2]
[378652327,1754944238569,-151.0,0.00019063,2]
[378652329,1754944238580,-151.0,0.00019063,2]
[378652331,1754944238591,-151.0,0.00019063,2]
[378652333,1754944238602,-151.0,0.00019063,2]
[378652336,1754944238615,-151.0,0.00019063,2]
[378652338,1754944238631,-151.0,0.00019063,2]
[378652340,1754944238643,-151.0,0.00019063,2]
[378652342,1754944238655,-151.0,0.00019063,2]
[378652343,1754944238667,-151.0,0.00019063,2]
[378652344,1754944238679,-5096.67325247,0.00019067,2]
[378652346,1754944238690,-1288.45625642,0.00019068,2]
[378652347,1754944238701,-1200.0,0.0001907,2]
[378652349,1754944238712,-182.264,0.00019072,2]
[378652351,1754944238723,-2614.40657448,0.00019078,2]
[378652353,1754944238734,-1288.45625641,0.00019139,2]
[378652355,1754944238745,-11182.51733722,0.0001916,2]
[378652356,1754944238756,-1472.0,0.00019166,2]
[378652357,1754944238767,-256.55294227,0.00019173,2]
[378652359,1754944238778,-313.66190617,0.00019173,2]
[378652361,1754944238788,-500.0,0.00019173,2]
[378652363,1754944238800,-503.27928647,0.00019173,2]
[378652365,1754944238813,-500.0,0.00019173,2]
[378652367,1754944238826,-500.0,0.00019173,2]
[378652369,1754944238837,-563.15294988,0.00019173,2]
[378652371,1754944238848,-500.0,0.00019173,2]
[378652373,1754944238859,-500.0,0.00019173,2]
[378652374,1754944238870,-500.0,0.00019173,2]
[378652375,1754944238880,-500.0,0.00019173,2]
[378652376,1754944238893,-500.0,0.00019173,2]
[378652378,1754944238904,-504.04565905,0.00019173,2]
[378652381,1754944238915,-500.0,0.00019173,2]
[378652383,1754944238925,-500.0,0.00019173,2]
[378652384,1754944238936,-500.0,0.00019173,2]
[378652385,1754944238947,-500.0,0.00019173,2]
[378652386,1754944238958,-264.0,0.00019176,2]
[378652387,1754944238968,-151.0,0.00019178,2]
[378652388,1754944238980,-151.0,0.00019178,2]
[378652389,1754944238991,-151.0,0.00019178,2]
[378652390,1754944239001,-151.0,0.00019178,2]
[378652391,1754944239012,-151.0,0.00019178,2]
[378652392,1754944239022,-151.0,0.00019178,2]
[378652393,1754944239033,-187.4,0.00019178,2]
[378652394,1754944239044,-151.0,0.00019178,2]
[378652395,1754944239054,-164.59,0.00019178,2]
[378652396,1754944239065,-460.0,0.00019178,2]
[378652397,1754944239077,-460.0,0.00019178,2]
[378652398,1754944239087,-460.0,0.00019178,2]
[378652399,1754944239098,-460.0,0.00019178,2]
[378652400,1754944239109,-460.0,0.00019178,2]
[378652401,1754944239120,-460.0,0.00019178,2]
[378652402,1754944239130,-460.0,0.00019178,2]
[378652403,1754944239141,-464.20244395,0.00019178,2]
[378652404,1754944239151,-467.29904304,0.00019178,2]
[378652405,1754944239162,-460.0,0.00019178,2]
[378652406,1754944239172,-460.0,0.00019178,2]
[378652407,1754944239183,-460.0,0.00019178,2]
[378652408,1754944239194,-460.0,0.00019178,2]
[378652409,1754944239205,-460.0,0.00019178,2]
[378652410,1754944239215,-460.0,0.00019178,2]
[378652411,1754944239226,-460.0,0.00019178,2]
[378652412,1754944239236,-460.0,0.00019178,2]
[378652413,1754944239247,-460.0,0.00019178,2]
[378652414,1754944239258,-460.0,0.00019178,2]
[378652415,1754944239268,-460.0,0.00019178,2]
[378652416,1754944239279,-460.0,0.00019178,2]
[378652417,1754944239289,-460.0,0.00019178,2]
[378652418,1754944239300,-460.0,0.00019178,2]
[378652419,1754944239310,-460.0,0.00019178,2]
[378652420,1754944239322,-460.0,0.00019178,2]
[378652421,1754944239332,-460.0,0.00019178,2]
[378652422,1754944239343,-460.0,0.00019178,2]
[378652423,1754944239354,-460.0,0.00019178,2]
[378652424,1754944239364,-460.0,0.00019178,2]
[378652425,1754944239374,-503.14,0.00019178,2]
[378652426,1754944239385,-460.0,0.00019178,2]
[378652427,1754944239398,-460.0,0.00019178,2]
[378652428,1754944239409,-460.0,0.00019178,2]
[378652429,1754944239419,-460.0,0.00019178,2]
[378652430,1754944239430,-460.0,0.00019178,2]
[378652431,1754944239440,-460.0,0.00019178,2]
[378652432,1754944239450,-467.18,0.00019178,2]
[378652433,1754944239460,-1028.23,0.00019178,2]
[378652434,1754944239470,-460.0,0.00019178,2]
[378652435,1754944239489,-460.0,0.00019178,2]
[378652436,1754944239504,-460.0,0.00019178,2]
[378652437,1754944239517,-460.0,0.00019178,2]
[378652438,1754944239529,-460.0,0.00019178,2]
[378652439,1754944239541,-941.44,0.00019178,2]
[378652440,1754944239553,-460.0,0.00019178,2]
[378652441,1754944239565,-460.0,0.00019178,2]
[378652442,1754944239578,-460.0,0.00019178,2]
[378652443,1754944239589,-460.0,0.00019178,2]
[378652444,1754944239602,-460.0,0.00019178,2]
[378652445,1754944239613,-1288.89,0.00019178,2]
[378652446,1754944239624,-460.0,0.00019178,2]
[378652447,1754944239637,-472.71,0.00019178,2]
[378652448,1754944239648,-594.98208201,0.00019178,2]
[378652449,1754944239660,-460.0,0.00019178,2]
[378652450,1754944239671,-460.0,0.00019178,2]
[378652451,1754944239683,-460.0,0.00019178,2]
[378652452,1754944239695,-460.0,0.00019178,2]
[378652453,1754944239706,-584.65,0.00019178,2]
[378652454,1754944239717,-587.93523805,0.00019178,2]
[378652455,1754944239728,-460.0,0.00019178,2]
[378652456,1754944239739,-460.0,0.00019178,2]
[378652457,1754944239750,-460.0,0.00019178,2]
[378652458,1754944239761,-361.08311554,0.00019178,2]
[378652459,1754944239772,-310.06418619,0.00019178,2]
[378652460,1754944239783,-460.0,0.00019178,2]
[378652461,1754944239794,-460.0,0.00019178,2]
[378652462,1754944239805,-460.0,0.00019178,2]
[378652463,1754944239820,-460.0,0.00019178,2]
[378652464,1754944239831,-460.0,0.00019178,2]
[378652465,1754944239842,-460.0,0.00019178,2]
[378652466,1754944239855,-460.0,0.00019178,2]
[378652467,1754944239866,-460.0,0.00019178,2]
[378652468,1754944239877,-462.64367269,0.00019178,2]
[378652469,1754944239889,-460.0,0.00019178,2]
[378652470,1754944239901,-460.0,0.00019178,2]
[378652471,1754944239912,-460.0,0.00019178,2]
[378652472,1754944239923,-460.0,0.00019178,2]
[378652473,1754944239933,-460.0,0.00019178,2]
[378652474,1754944239945,-460.0,0.00019178,2]
[378652475,1754944239956,-462.17,0.00019178,2]
[378652476,1754944239967,-3532.8,0.00019178,2]
[378652477,1754944239978,-460.0,0.00019178,2]
[378652478,1754944239989,-460.0,0.00019178,2]
[378652479,1754944239999,-460.0,0.00019178,2]
[378652480,1754944240010,-460.0,0.00019178,2]
[378652481,1754944240021,-151.69258288,0.00019178,2]
[378652482,1754944240032,-460.0,0.00019178,2]
[378652483,1754944240043,-460.0,0.00019178,2]
[378652484,1754944240054,-460.0,0.00019178,2]
[378652485,1754944240065,-460.0,0.00019178,2]
[378652486,1754944240076,-460.0,0.00019178,2]
[378652487,1754944240087,-460.0,0.00019178,2]
[378652488,1754944240097,-460.0,0.00019178,2]
[378652489,1754944240108,-300.21722509,0.00019178,2]
[378652490,1754944240119,-460.0,0.00019178,2]
[378652492,1754944240129,-460.0,0.00019178,2]
[378652493,1754944240141,-191.62398433,0.00019178,2]
[378652494,1754944240151,-460.0,0.00019178,2]